[Event "Titled Tuesday Blitz January 17 Early 2023"]
[White "Aung Thant Zin"]
[Black "Garrido, Denis"]
[WhiteFideId "13000063"]
[BlackFideId "601217"]
[WhiteElo "2268"]
[BlackElo "2205"]
[Result "0-1"]
[Round "09"]
[TimeControl "180+2"]
[Date "2023.01.17"]
[WhiteClock "0:00:01"]
[BlackClock "0:00:49"]

1. c4 {[%clk 0:02:59]}  Nf6 {[%clk 0:02:59]} 2. Nc3 {[%clk 0:02:59]}  g6 {[%clk 0:02:59]} 3. e4 {[%clk 0:02:59]}  d6 {[%clk 0:02:59]} 4. d4 {[%clk 0:02:59]}  Bg7 {[%clk 0:03:00]} 5. g3 {[%clk 0:02:59]}  O-O {[%clk 0:02:59]} 6. Bg2 {[%clk 0:03:00]}  c5 {[%clk 0:02:59]} 7. Nge2 {[%clk 0:03:00]}  cxd4 {[%clk 0:02:58]} 8. Nxd4 {[%clk 0:03:01]}  Nc6 {[%clk 0:02:59]} 9. Nc2 {[%clk 0:03:01]}  Qa5 {[%clk 0:02:54]} 10. O-O {[%clk 0:02:59]}  Bd7 {[%clk 0:02:40]} 11. Rb1 {[%clk 0:02:46]}  Rfc8 {[%clk 0:02:36]} 12. b4 {[%clk 0:02:44]}  Qd8 {[%clk 0:02:35]} 13. Ne3 {[%clk 0:01:42]}  Ne5 {[%clk 0:02:22]} 14. Qe2 {[%clk 0:01:41]}  Nxc4 {[%clk 0:02:11]} 15. Nxc4 {[%clk 0:01:37]}  b5 {[%clk 0:02:11]} 16. e5 {[%clk 0:01:23]}  dxe5 {[%clk 0:01:37]} 17. Nxe5 {[%clk 0:01:02]}  Rxc3 {[%clk 0:01:21]} 18. Nxd7 {[%clk 0:00:59]}  Nxd7 {[%clk 0:01:16]} 19. Bxa8 {[%clk 0:00:58]}  Qxa8 {[%clk 0:01:17]} 20. Bb2 {[%clk 0:00:51]}  Ne5 {[%clk 0:01:11]} 21. f4 {[%clk 0:00:16]}  Nf3+ {[%clk 0:01:06]} 22. Rxf3 {[%clk 0:00:13]}  Qxf3 {[%clk 0:00:57]} 23. Qxf3 {[%clk 0:00:11]}  Rxf3 {[%clk 0:00:58]} 24. Bxg7 {[%clk 0:00:07]}  Kxg7 {[%clk 0:00:59]} 25. Rc1 {[%clk 0:00:04]}  Ra3 {[%clk 0:00:57]} 26. Rc7 {[%clk 0:00:01]}  Kf6 {[%clk 0:00:49]} 0-1


[Site "https://www.chess.com"]

[Event "Titled Tuesday Blitz January 17 Early 2023"]
[White "Liimatainen, Jero"]
[Black "Kornyukov, Alexey"]
[WhiteFideId "509531"]
[BlackFideId "4150457"]
[WhiteElo "1948"]
[BlackElo "2452"]
[Result "1-0"]
[Round "09"]
[TimeControl "180+2"]
[Date "2023.01.17"]
[WhiteClock "0:02:18"]
[BlackClock "0:01:34"]

1. e4 {[%clk 0:03:00]}  c5 {[%clk 0:02:53]} 2. Nf3 {[%clk 0:03:01]}  Nc6 {[%clk 0:02:53]} 3. Bb5 {[%clk 0:03:00]}  g6 {[%clk 0:02:52]} 4. O-O {[%clk 0:02:58]}  Bg7 {[%clk 0:02:52]} 5. Re1 {[%clk 0:02:58]}  e5 {[%clk 0:02:53]} 6. b4 {[%clk 0:02:57]}  cxb4 {[%clk 0:02:46]} 7. a3 {[%clk 0:02:56]}  bxa3 {[%clk 0:02:45]} 8. Bxa3 {[%clk 0:02:54]}  Nge7 {[%clk 0:02:45]} 9. Bd6 {[%clk 0:02:52]}  O-O {[%clk 0:02:44]} 10. c4 {[%clk 0:02:49]}  Nd4 {[%clk 0:02:30]} 11. Nc3 {[%clk 0:02:35]}  Nxb5 {[%clk 0:02:22]} 12. cxb5 {[%clk 0:02:34]}  Re8 {[%clk 0:02:18]} 13. Qb3 {[%clk 0:02:29]}  Qb6 {[%clk 0:02:15]} 14. Ng5 {[%clk 0:02:26]}  Qd8 {[%clk 0:01:35]} 15. Nxf7 {[%clk 0:02:20]}  Qb6 {[%clk 0:01:34]} 16. Nh6+ {[%clk 0:02:18]}  Kh8 {[%clk 0:01:34]} 17. Qg8+ {[%clk 0:02:18]}  Nxg8 {[%clk 0:01:34]} 18. Nf7# {[%clk 0:02:18]} 1-0


[Site "https://www.chess.com"]

[Event "Titled Tuesday Blitz January 17 Early 2023"]
[White "ritanovikova"]
[Black "Better_Chess_Faster"]
[WhiteElo "2137"]
[BlackElo "2030"]
[Result "0-1"]
[Round "09"]
[TimeControl "180+2"]
[Date "2023.01.17"]
[WhiteClock "0:00:52"]
[BlackClock "0:02:22"]

1. d4 {[%clk 0:02:59]}  Nf6 {[%clk 0:02:59]} 2. Bf4 {[%clk 0:02:58]}  d5 {[%clk 0:02:57]} 3. Nf3 {[%clk 0:02:57]}  c5 {[%clk 0:02:56]} 4. e3 {[%clk 0:02:57]}  Nc6 {[%clk 0:02:56]} 5. c3 {[%clk 0:02:54]}  Qb6 {[%clk 0:02:55]} 6. Qb3 {[%clk 0:02:52]}  c4 {[%clk 0:02:55]} 7. Qxb6 {[%clk 0:02:51]}  axb6 {[%clk 0:02:56]} 8. Na3 {[%clk 0:02:50]}  Bf5 {[%clk 0:02:48]} 9. Nb5 {[%clk 0:02:48]}  Kd7 {[%clk 0:02:46]} 10. h3 {[%clk 0:02:32]}  e6 {[%clk 0:02:45]} 11. Ne5+ {[%clk 0:01:48]}  Nxe5 {[%clk 0:02:44]} 12. Bxe5 {[%clk 0:01:48]}  Be7 {[%clk 0:02:41]} 13. Be2 {[%clk 0:01:43]}  Ra5 {[%clk 0:02:31]} 14. a4 {[%clk 0:01:26]}  Rha8 {[%clk 0:02:30]} 15. Nc7 {[%clk 0:01:13]}  Rxa4 {[%clk 0:02:28]} 16. Rxa4 {[%clk 0:01:08]}  Rxa4 {[%clk 0:02:29]} 17. Kd2 {[%clk 0:01:04]}  Ra2 {[%clk 0:02:24]} 18. Rb1 {[%clk 0:00:52]}  Bxb1 {[%clk 0:02:22]} 0-1


[Site "https://www.chess.com"]

[Event "Titled Tuesday Blitz January 17 Early 2023"]
[White "Adithya A Chullikkad"]
[Black "Avazkhonov, Alikhon"]
[WhiteFideId "45078734"]
[BlackFideId "14208504"]
[WhiteElo "2259"]
[BlackElo "1538"]
[Result "0-1"]
[Round "09"]
[TimeControl "180+2"]
[Date "2023.01.17"]
[WhiteClock "0:00:08"]
[BlackClock "0:00:06"]

1. e4 {[%clk 0:03:00]}  c5 {[%clk 0:02:35]} 2. d4 {[%clk 0:02:57]}  cxd4 {[%clk 0:02:36]} 3. c3 {[%clk 0:02:57]}  dxc3 {[%clk 0:02:33]} 4. Nxc3 {[%clk 0:02:57]}  Nc6 {[%clk 0:02:32]} 5. Bc4 {[%clk 0:02:57]}  e6 {[%clk 0:02:29]} 6. Nf3 {[%clk 0:02:57]}  Bb4 {[%clk 0:02:29]} 7. O-O {[%clk 0:02:56]}  Nge7 {[%clk 0:02:27]} 8. Qe2 {[%clk 0:02:53]}  O-O {[%clk 0:02:20]} 9. Rd1 {[%clk 0:02:53]}  Bxc3 {[%clk 0:01:58]} 10. bxc3 {[%clk 0:02:51]}  d5 {[%clk 0:01:59]} 11. Bb3 {[%clk 0:02:14]}  Qa5 {[%clk 0:01:50]} 12. Bb2 {[%clk 0:01:20]}  dxe4 {[%clk 0:01:45]} 13. Qxe4 {[%clk 0:01:19]}  e5 {[%clk 0:01:38]} 14. g4 {[%clk 0:00:49]}  h6 {[%clk 0:00:59]} 15. h4 {[%clk 0:00:39]}  Be6 {[%clk 0:00:53]} 16. Bc2 {[%clk 0:00:35]}  g6 {[%clk 0:00:50]} 17. h5 {[%clk 0:00:19]}  f5 {[%clk 0:00:44]} 18. Qe3 {[%clk 0:00:18]}  f4 {[%clk 0:00:31]} 19. Qe4 {[%clk 0:00:18]}  Bxg4 {[%clk 0:00:30]} 20. hxg6 {[%clk 0:00:17]}  Bf5 {[%clk 0:00:29]} 21. Bb3+ {[%clk 0:00:12]}  Kg7 {[%clk 0:00:30]} 22. Qe2 {[%clk 0:00:11]}  e4 {[%clk 0:00:20]} 23. c4+ {[%clk 0:00:10]}  Kxg6 {[%clk 0:00:15]} 24. Nh4+ {[%clk 0:00:10]}  Kh7 {[%clk 0:00:15]} 25. Nxf5 {[%clk 0:00:09]}  Qxf5 {[%clk 0:00:14]} 26. Rd6 {[%clk 0:00:06]}  Rg8+ {[%clk 0:00:10]} 27. Kf1 {[%clk 0:00:06]}  f3 {[%clk 0:00:11]} 28. Qe3 {[%clk 0:00:05]}  Qh3+ {[%clk 0:00:04]} 29. Ke1 {[%clk 0:00:05]}  Qh4 {[%clk 0:00:02]} 30. Kd2 {[%clk 0:00:03]}  Rad8 {[%clk 0:00:02]} 31. Rxd8 {[%clk 0:00:03]}  Rxd8+ {[%clk 0:00:02]} 32. Kc2 {[%clk 0:00:03]}  Rd3 {[%clk 0:00:02]} 33. Qe1 {[%clk 0:00:02]}  Nd4+ {[%clk 0:00:02]} 34. Bxd4 {[%clk 0:00:02]}  Rxd4 {[%clk 0:00:03]} 35. Kc3 {[%clk 0:00:02]}  Rd3+ {[%clk 0:00:03]} 36. Kb2 {[%clk 0:00:03]}  Nc6 {[%clk 0:00:03]} 37. Bc2 {[%clk 0:00:03]}  Qf6+ {[%clk 0:00:04]} 38. Kb1 {[%clk 0:00:03]}  Rd4 {[%clk 0:00:02]} 39. Bxe4+ {[%clk 0:00:04]}  Kg7 {[%clk 0:00:03]} 40. Qc3 {[%clk 0:00:04]}  Rxe4 {[%clk 0:00:02]} 41. Qxf6+ {[%clk 0:00:04]}  Kxf6 {[%clk 0:00:03]} 42. Kb2 {[%clk 0:00:03]}  Rxc4 {[%clk 0:00:04]} 43. Re1 {[%clk 0:00:04]}  Rb4+ {[%clk 0:00:04]} 44. Kc3 {[%clk 0:00:04]}  Rb5 {[%clk 0:00:04]} 45. Re3 {[%clk 0:00:04]}  Rc5+ {[%clk 0:00:05]} 46. Kb3 {[%clk 0:00:04]}  Rf5 {[%clk 0:00:06]} 47. Rd3 {[%clk 0:00:04]}  h5 {[%clk 0:00:06]} 48. Rd6+ {[%clk 0:00:05]}  Ke5 {[%clk 0:00:05]} 49. Rd7 {[%clk 0:00:05]}  Nd4+ {[%clk 0:00:03]} 50. Kc4 {[%clk 0:00:05]}  Ne6 {[%clk 0:00:04]} 51. Rxb7 {[%clk 0:00:05]}  h4 {[%clk 0:00:03]} 52. Rxa7 {[%clk 0:00:05]}  Rh5 {[%clk 0:00:04]} 53. Ra3 {[%clk 0:00:05]}  Kf4 {[%clk 0:00:04]} 54. Re3 {[%clk 0:00:03]}  h3 {[%clk 0:00:03]} 55. Rxe6 {[%clk 0:00:04]}  h2 {[%clk 0:00:04]} 56. Re1 {[%clk 0:00:04]}  h1=Q {[%clk 0:00:03]} 57. Rxh1 {[%clk 0:00:05]}  Rxh1 {[%clk 0:00:04]} 58. a4 {[%clk 0:00:05]}  Rh2 {[%clk 0:00:05]} 59. a5 {[%clk 0:00:06]}  Rxf2 {[%clk 0:00:05]} 60. a6 {[%clk 0:00:07]}  Ra2 {[%clk 0:00:06]} 61. a7 {[%clk 0:00:08]}  Rxa7 {[%clk 0:00:06]} 0-1


[Site "https://www.chess.com"]

[Event "Titled Tuesday Blitz January 17 Early 2023"]
[White "Stead, Kerry"]
[Black "Mitrovic, Darko R"]
[WhiteFideId "3202577"]
[BlackFideId "927023"]
[WhiteElo "1908"]
[BlackElo "2220"]
[Result "1-0"]
[Round "09"]
[TimeControl "180+2"]
[Date "2023.01.17"]
[WhiteClock "0:00:21"]
[BlackClock "0:00:57"]

1. d4 {[%clk 0:03:00]}  Nf6 {[%clk 0:02:56]} 2. f3 {[%clk 0:02:59]}  d5 {[%clk 0:02:56]} 3. e4 {[%clk 0:02:58]}  dxe4 {[%clk 0:02:56]} 4. Nc3 {[%clk 0:02:58]}  exf3 {[%clk 0:02:55]} 5. Nxf3 {[%clk 0:02:59]}  c6 {[%clk 0:02:55]} 6. Bg5 {[%clk 0:02:58]}  Bf5 {[%clk 0:02:53]} 7. Bd3 {[%clk 0:02:51]}  Bxd3 {[%clk 0:02:52]} 8. Qxd3 {[%clk 0:02:52]}  Nbd7 {[%clk 0:02:51]} 9. O-O-O {[%clk 0:02:50]}  e6 {[%clk 0:02:51]} 10. Rhf1 {[%clk 0:02:47]}  Be7 {[%clk 0:02:50]} 11. Ne4 {[%clk 0:02:35]}  Nxe4 {[%clk 0:02:43]} 12. Bxe7 {[%clk 0:02:33]}  Qxe7 {[%clk 0:02:42]} 13. Qxe4 {[%clk 0:02:32]}  O-O {[%clk 0:02:40]} 14. Rd3 {[%clk 0:02:14]}  Rad8 {[%clk 0:02:09]} 15. c3 {[%clk 0:01:57]}  Nf6 {[%clk 0:02:00]} 16. Qh4 {[%clk 0:01:52]}  Nd5 {[%clk 0:01:59]} 17. Qg3 {[%clk 0:01:45]}  Qf6 {[%clk 0:01:51]} 18. Nd2 {[%clk 0:01:41]}  Qg6 {[%clk 0:01:48]} 19. Nc4 {[%clk 0:01:26]}  Qxg3 {[%clk 0:01:45]} 20. Rxg3 {[%clk 0:01:27]}  f6 {[%clk 0:01:37]} 21. Re1 {[%clk 0:01:21]}  Rfe8 {[%clk 0:01:31]} 22. h4 {[%clk 0:01:12]}  h5 {[%clk 0:01:17]} 23. Kc2 {[%clk 0:00:51]}  b6 {[%clk 0:01:14]} 24. Ne3 {[%clk 0:00:50]}  Nxe3+ {[%clk 0:01:12]} 25. Rgxe3 {[%clk 0:00:51]}  Kf7 {[%clk 0:01:11]} 26. Re4 {[%clk 0:00:33]}  Rd5 {[%clk 0:01:08]} 27. g4 {[%clk 0:00:32]}  hxg4 {[%clk 0:01:05]} 28. Rxg4 {[%clk 0:00:33]}  Rh8 {[%clk 0:00:57]} 29. c4 {[%clk 0:00:21]} 1-0


[Site "https://www.chess.com"]

[Event "Titled Tuesday Blitz January 17 Early 2023"]
[White "Vargas, Mauricio"]
[Black "Winkels, Marcel"]
[WhiteFideId "4404572"]
[BlackFideId "1003887"]
[WhiteElo "2035"]
[BlackElo "1960"]
[Result "0-1"]
[Round "09"]
[TimeControl "180+2"]
[Date "2023.01.17"]
[WhiteClock "0:00:04"]
[BlackClock "0:01:02"]

1. e4 {[%clk 0:02:42]}  c5 {[%clk 0:02:58]} 2. f4 {[%clk 0:02:41]}  e6 {[%clk 0:02:59]} 3. Nc3 {[%clk 0:02:42]}  d5 {[%clk 0:02:58]} 4. e5 {[%clk 0:02:41]}  d4 {[%clk 0:02:58]} 5. Nf3 {[%clk 0:02:42]}  dxc3 {[%clk 0:02:56]} 6. dxc3 {[%clk 0:02:43]}  Qxd1+ {[%clk 0:02:54]} 7. Kxd1 {[%clk 0:02:44]}  Nc6 {[%clk 0:02:54]} 8. Be3 {[%clk 0:02:41]}  Bd7 {[%clk 0:02:54]} 9. Ke1 {[%clk 0:02:39]}  O-O-O {[%clk 0:02:54]} 10. Kf2 {[%clk 0:02:39]}  b6 {[%clk 0:02:51]} 11. Ba6+ {[%clk 0:02:37]}  Kb8 {[%clk 0:02:50]} 12. a3 {[%clk 0:02:34]}  Bc8 {[%clk 0:02:44]} 13. Bb5 {[%clk 0:02:33]}  Bb7 {[%clk 0:02:42]} 14. b4 {[%clk 0:02:31]}  cxb4 {[%clk 0:02:40]} 15. axb4 {[%clk 0:02:30]}  Nge7 {[%clk 0:02:36]} 16. Nd2 {[%clk 0:02:27]}  Nd5 {[%clk 0:02:35]} 17. Ne4 {[%clk 0:02:25]}  Nxe3 {[%clk 0:02:33]} 18. Kxe3 {[%clk 0:02:24]}  Be7 {[%clk 0:02:21]} 19. Ra3 {[%clk 0:02:20]}  Rd7 {[%clk 0:02:19]} 20. Rha1 {[%clk 0:02:19]}  Rhd8 {[%clk 0:02:17]} 21. g3 {[%clk 0:01:55]}  h6 {[%clk 0:02:16]} 22. h4 {[%clk 0:01:53]}  Rc8 {[%clk 0:02:15]} 23. Nd6 {[%clk 0:01:24]}  Bxd6 {[%clk 0:02:06]} 24. exd6 {[%clk 0:01:24]}  Rxd6 {[%clk 0:01:59]} 25. Bxc6 {[%clk 0:01:23]}  Rdxc6 {[%clk 0:01:58]} 26. Rxa7 {[%clk 0:01:16]}  Rxc3+ {[%clk 0:01:57]} 27. Kd2 {[%clk 0:01:04]}  Rxc2+ {[%clk 0:01:56]} 28. Kd3 {[%clk 0:01:01]}  R8c3+ {[%clk 0:01:49]} 29. Kd4 {[%clk 0:00:59]}  Rxg3 {[%clk 0:01:45]} 30. h5 {[%clk 0:00:51]}  Rf3 {[%clk 0:01:43]} 31. Ke5 {[%clk 0:00:50]}  Re2+ {[%clk 0:01:41]} 32. Kd6 {[%clk 0:00:48]}  Rxf4 {[%clk 0:01:40]} 33. Kd7 {[%clk 0:00:46]}  Rd2+ {[%clk 0:01:32]} 34. Ke7 {[%clk 0:00:44]}  e5 {[%clk 0:01:32]} 35. R7a3 {[%clk 0:00:22]}  Rc4 {[%clk 0:01:14]} 36. b5 {[%clk 0:00:22]}  Rc7+ {[%clk 0:01:12]} 37. Ke8 {[%clk 0:00:20]}  Kc8 {[%clk 0:01:12]} 38. Ra8+ {[%clk 0:00:17]}  Bxa8 {[%clk 0:01:11]} 39. Rxa8+ {[%clk 0:00:18]}  Kb7 {[%clk 0:01:11]} 40. Ra6 {[%clk 0:00:17]}  e4 {[%clk 0:01:08]} 41. Ra3 {[%clk 0:00:14]}  Rd3 {[%clk 0:01:06]} 42. Ra2 {[%clk 0:00:08]}  f5 {[%clk 0:01:03]} 43. Rf2 {[%clk 0:00:04]}  Kc8 {[%clk 0:01:02]} 0-1


[Site "https://www.chess.com"]

[Event "Titled Tuesday Blitz January 17 Early 2023"]
[White "Necula, Iulian"]
[Black "Soumya, Swaminathan"]
[WhiteFideId "1232380"]
[BlackFideId "5016193"]
[WhiteElo "1851"]
[BlackElo "2293"]
[Result "0-1"]
[Round "09"]
[TimeControl "180+2"]
[Date "2023.01.17"]
[WhiteClock "0:00:02"]
[BlackClock "0:00:06"]

1. d4 {[%clk 0:03:00]}  Nf6 {[%clk 0:02:59]} 2. Nc3 {[%clk 0:03:00]}  d5 {[%clk 0:02:57]} 3. Bf4 {[%clk 0:02:57]}  g6 {[%clk 0:02:52]} 4. e3 {[%clk 0:02:56]}  Bg7 {[%clk 0:02:52]} 5. h3 {[%clk 0:02:56]}  O-O {[%clk 0:02:46]} 6. Nb5 {[%clk 0:02:55]}  Ne8 {[%clk 0:02:39]} 7. Nf3 {[%clk 0:02:50]}  Nd7 {[%clk 0:02:25]} 8. Bd3 {[%clk 0:02:45]}  c5 {[%clk 0:02:20]} 9. c3 {[%clk 0:02:34]}  Qb6 {[%clk 0:02:05]} 10. a4 {[%clk 0:02:30]}  c4 {[%clk 0:01:56]} 11. Be2 {[%clk 0:02:23]}  a6 {[%clk 0:01:55]} 12. Na3 {[%clk 0:02:20]}  Qxb2 {[%clk 0:01:55]} 13. O-O {[%clk 0:02:19]}  Qxc3 {[%clk 0:01:53]} 14. Ne1 {[%clk 0:01:59]}  Nef6 {[%clk 0:01:45]} 15. Nec2 {[%clk 0:01:58]}  Qa5 {[%clk 0:01:41]} 16. Nb1 {[%clk 0:01:54]}  Re8 {[%clk 0:01:34]} 17. f3 {[%clk 0:01:53]}  e5 {[%clk 0:01:33]} 18. Bg3 {[%clk 0:01:49]}  Nh5 {[%clk 0:01:25]} 19. Bf2 {[%clk 0:01:48]}  exd4 {[%clk 0:01:22]} 20. Nxd4 {[%clk 0:01:46]}  Nc5 {[%clk 0:01:20]} 21. Nd2 {[%clk 0:01:41]}  Ne6 {[%clk 0:01:00]} 22. Rb1 {[%clk 0:01:22]}  Nxd4 {[%clk 0:00:59]} 23. exd4 {[%clk 0:01:23]}  Nf4 {[%clk 0:00:56]} 24. Re1 {[%clk 0:01:21]}  Bf5 {[%clk 0:00:44]} 25. Rxb7 {[%clk 0:01:18]}  c3 {[%clk 0:00:27]} 26. Nb3 {[%clk 0:01:12]}  Qxa4 {[%clk 0:00:24]} 27. Bf1 {[%clk 0:01:04]}  c2 {[%clk 0:00:24]} 28. Qd2 {[%clk 0:01:01]}  Rxe1 {[%clk 0:00:17]} 29. Bxe1 {[%clk 0:01:02]}  Qc6 {[%clk 0:00:16]} 30. Rb4 {[%clk 0:00:46]}  Ne6 {[%clk 0:00:11]} 31. g4 {[%clk 0:00:37]}  a5 {[%clk 0:00:11]} 32. gxf5 {[%clk 0:00:36]}  axb4 {[%clk 0:00:06]} 33. fxe6 {[%clk 0:00:36]}  fxe6 {[%clk 0:00:05]} 34. Bf2 {[%clk 0:00:28]}  Rc8 {[%clk 0:00:04]} 35. Nc1 {[%clk 0:00:26]}  Qc3 {[%clk 0:00:04]} 36. Be1 {[%clk 0:00:24]}  Qxd2 {[%clk 0:00:04]} 37. Bxd2 {[%clk 0:00:25]}  Bf8 {[%clk 0:00:04]} 38. Kg2 {[%clk 0:00:25]}  Rb8 {[%clk 0:00:04]} 39. Nb3 {[%clk 0:00:24]}  Bd6 {[%clk 0:00:03]} 40. Bd3 {[%clk 0:00:22]}  Rc8 {[%clk 0:00:03]} 41. Bc1 {[%clk 0:00:21]}  Rc3 {[%clk 0:00:03]} 42. Bxc2 {[%clk 0:00:13]}  Rxc2+ {[%clk 0:00:04]} 43. Kf1 {[%clk 0:00:12]}  Rc3 {[%clk 0:00:04]} 44. Ke2 {[%clk 0:00:06]}  Rxb3 {[%clk 0:00:05]} 45. Kd2 {[%clk 0:00:06]}  Rc3 {[%clk 0:00:05]} 46. Bb2 {[%clk 0:00:06]}  Rxf3 {[%clk 0:00:05]} 47. h4 {[%clk 0:00:04]}  Rh3 {[%clk 0:00:06]} 48. h5 {[%clk 0:00:04]}  Rxh5 {[%clk 0:00:06]} 49. Kd3 {[%clk 0:00:02]}  Rh3+ {[%clk 0:00:06]} 50. Ke2 {[%clk 0:00:02]}  Rh2+ {[%clk 0:00:06]} 0-1


[Site "https://www.chess.com"]

[Event "Titled Tuesday Blitz January 17 Early 2023"]
[White "Kamsky, Gata"]
[Black "Bluebaum, Matthias"]
[WhiteFideId "2000024"]
[BlackFideId "24651516"]
[WhiteElo "2665"]
[BlackElo "2669"]
[Result "1/2-1/2"]
[Round "10"]
[TimeControl "180+2"]
[Date "2023.01.17"]
[WhiteClock "0:00:12"]
[BlackClock "0:00:26"]

1. e4 {[%clk 0:03:00]}  e6 {[%clk 0:03:00]} 2. d4 {[%clk 0:02:59]}  d5 {[%clk 0:03:00]} 3. Nc3 {[%clk 0:02:59]}  Nf6 {[%clk 0:03:00]} 4. e5 {[%clk 0:02:59]}  Nfd7 {[%clk 0:03:01]} 5. f4 {[%clk 0:02:59]}  c5 {[%clk 0:03:01]} 6. Nf3 {[%clk 0:02:59]}  Nc6 {[%clk 0:03:02]} 7. Be3 {[%clk 0:02:59]}  a6 {[%clk 0:03:03]} 8. Qd2 {[%clk 0:02:58]}  b5 {[%clk 0:03:03]} 9. a3 {[%clk 0:02:58]}  Qa5 {[%clk 0:03:03]} 10. Ra2 {[%clk 0:02:50]}  Qb6 {[%clk 0:03:02]} 11. Ne2 {[%clk 0:02:31]}  b4 {[%clk 0:03:02]} 12. axb4 {[%clk 0:02:22]}  Nxb4 {[%clk 0:03:03]} 13. Ra1 {[%clk 0:02:21]}  Nc6 {[%clk 0:03:03]} 14. b3 {[%clk 0:02:13]}  Be7 {[%clk 0:03:02]} 15. g3 {[%clk 0:01:49]}  O-O {[%clk 0:03:02]} 16. Bg2 {[%clk 0:01:49]}  a5 {[%clk 0:03:02]} 17. O-O {[%clk 0:01:47]}  Ba6 {[%clk 0:03:03]} 18. Rfe1 {[%clk 0:01:42]}  Bxe2 {[%clk 0:02:58]} 19. Rxe2 {[%clk 0:01:42]}  cxd4 {[%clk 0:02:58]} 20. Nxd4 {[%clk 0:01:41]}  Nxd4 {[%clk 0:02:59]} 21. Bxd4 {[%clk 0:01:41]}  Bc5 {[%clk 0:02:59]} 22. Bxc5 {[%clk 0:01:36]}  Nxc5 {[%clk 0:02:59]} 23. Qd4 {[%clk 0:01:30]}  g6 {[%clk 0:02:51]} 24. h4 {[%clk 0:01:27]}  Qb4 {[%clk 0:02:47]} 25. Rd2 {[%clk 0:01:23]}  Rfb8 {[%clk 0:02:42]} 26. Kh2 {[%clk 0:01:21]}  a4 {[%clk 0:02:26]} 27. bxa4 {[%clk 0:01:13]}  Rxa4 {[%clk 0:02:27]} 28. Rxa4 {[%clk 0:01:07]}  Nxa4 {[%clk 0:02:28]} 29. Qa7 {[%clk 0:00:52]}  Nc5 {[%clk 0:02:25]} 30. Rd4 {[%clk 0:00:49]}  Qb6 {[%clk 0:02:16]} 31. Qe7 {[%clk 0:00:36]}  Ne4 {[%clk 0:02:10]} 32. Rd3 {[%clk 0:00:25]}  h5 {[%clk 0:01:44]} 33. Rb3 {[%clk 0:00:17]}  Qd8 {[%clk 0:01:38]} 34. Qxd8+ {[%clk 0:00:17]}  Rxd8 {[%clk 0:01:39]} 35. Bxe4 {[%clk 0:00:17]}  dxe4 {[%clk 0:01:40]} 36. Re3 {[%clk 0:00:17]}  Rd4 {[%clk 0:01:22]} 37. c3 {[%clk 0:00:16]}  Ra4 {[%clk 0:01:22]} 38. Kh3 {[%clk 0:00:16]}  Kf8 {[%clk 0:01:16]} 39. g4 {[%clk 0:00:16]}  Ke7 {[%clk 0:01:16]} 40. Kg3 {[%clk 0:00:16]}  Kd7 {[%clk 0:01:15]} 41. Re1 {[%clk 0:00:15]}  Kc6 {[%clk 0:01:11]} 42. gxh5 {[%clk 0:00:15]}  gxh5 {[%clk 0:01:11]} 43. Rd1 {[%clk 0:00:13]}  Ra3 {[%clk 0:01:05]} 44. f5 {[%clk 0:00:09]}  Rxc3+ {[%clk 0:00:47]} 45. Kf4 {[%clk 0:00:09]}  exf5 {[%clk 0:00:48]} 46. Kxf5 {[%clk 0:00:08]}  e3 {[%clk 0:00:48]} 47. Ke4 {[%clk 0:00:08]}  e2 {[%clk 0:00:27]} 48. Re1 {[%clk 0:00:08]}  Kd7 {[%clk 0:00:28]} 49. Rxe2 {[%clk 0:00:07]}  Ke6 {[%clk 0:00:29]} 50. Rg2 {[%clk 0:00:06]}  Rc4+ {[%clk 0:00:29]} 51. Kf3 {[%clk 0:00:06]}  Rxh4 {[%clk 0:00:29]} 52. Rg5 {[%clk 0:00:06]}  Rh1 {[%clk 0:00:19]} 53. Kg2 {[%clk 0:00:06]}  Re1 {[%clk 0:00:18]} 54. Rxh5 {[%clk 0:00:06]}  Rxe5 {[%clk 0:00:19]} 55. Rh4 {[%clk 0:00:06]}  Re3 {[%clk 0:00:19]} 56. Kf2 {[%clk 0:00:07]}  Rb3 {[%clk 0:00:19]} 57. Rg4 {[%clk 0:00:07]}  Kf5 {[%clk 0:00:20]} 58. Rc4 {[%clk 0:00:07]}  Rd3 {[%clk 0:00:20]} 59. Rb4 {[%clk 0:00:07]}  Kg5 {[%clk 0:00:20]} 60. Ra4 {[%clk 0:00:07]}  Rd5 {[%clk 0:00:20]} 61. Rb4 {[%clk 0:00:07]}  Kf5 {[%clk 0:00:20]} 62. Kf3 {[%clk 0:00:08]}  Rd3+ {[%clk 0:00:20]} 63. Kf2 {[%clk 0:00:08]}  Rc3 {[%clk 0:00:20]} 64. Ra4 {[%clk 0:00:08]}  Rb3 {[%clk 0:00:21]} 65. Rc4 {[%clk 0:00:08]}  Ke5 {[%clk 0:00:21]} 66. Ke2 {[%clk 0:00:08]}  Rh3 {[%clk 0:00:20]} 67. Kf2 {[%clk 0:00:09]}  Rh6 {[%clk 0:00:19]} 68. Rb4 {[%clk 0:00:08]}  Rd6 {[%clk 0:00:19]} 69. Ke3 {[%clk 0:00:09]}  Rd5 {[%clk 0:00:19]} 70. Kf3 {[%clk 0:00:09]}  Ra5 {[%clk 0:00:19]} 71. Ke3 {[%clk 0:00:09]}  Ra3+ {[%clk 0:00:20]} 72. Ke2 {[%clk 0:00:09]}  f6 {[%clk 0:00:20]} 73. Kf2 {[%clk 0:00:10]}  Rd3 {[%clk 0:00:21]} 74. Ke2 {[%clk 0:00:09]}  Rh3 {[%clk 0:00:20]} 75. Kf2 {[%clk 0:00:09]}  f5 {[%clk 0:00:20]} 76. Ke2 {[%clk 0:00:10]}  Kf6 {[%clk 0:00:20]} 77. Kf2 {[%clk 0:00:10]}  Kg5 {[%clk 0:00:21]} 78. Kg2 {[%clk 0:00:10]}  Re3 {[%clk 0:00:21]} 79. Kf2 {[%clk 0:00:11]}  Re4 {[%clk 0:00:19]} 80. Rxe4 {[%clk 0:00:10]}  fxe4 {[%clk 0:00:20]} 81. Ke3 {[%clk 0:00:10]}  Kf5 {[%clk 0:00:21]} 82. Ke2 {[%clk 0:00:11]}  Kf4 {[%clk 0:00:22]} 83. Kf2 {[%clk 0:00:11]}  e3+ {[%clk 0:00:23]} 84. Ke2 {[%clk 0:00:11]}  Ke4 {[%clk 0:00:24]} 85. Ke1 {[%clk 0:00:12]}  Kf3 {[%clk 0:00:25]} 86. Kf1 {[%clk 0:00:12]}  e2+ {[%clk 0:00:26]} 87. Ke1 {[%clk 0:00:12]}  Ke3 {[%clk 0:00:26]} 1/2-1/2


[Site "https://www.chess.com"]